Cogmind - Beta 11.1 @@@ ROGUE MODE // 2022.06.06 @ 00:10:49 Player: Ruxi Result: Destroyed by H-55 Commando with Gauss Rifle Performance ------------- Evolutions (0) 0 Regions Visited (3) 600 Robots Destroyed (32) 160 Value Destroyed (803) 803 Prototype IDs (24) 480 Alien Tech Used (0) 0 Bonus (184) 184 TOTAL SCORE: 2227 Bonus ------- Aligned with FarCom 300 Friendly Fire -116 Cogmind --------- Core Integrity 0/250 Matter 85/300 Energy 170/170 System Corruption 12% Temperature Cool (0) Movement Treading (240) Ox1 Location -10/Exiles Parts ------- > --- POWER (1) -------- Makeshift Power Source > --- PROPULSION (2) --- Light Treads Light Treads > --- UTILITY (2) ------ High-capacity Storage Unit > --- WEAPON (2) ------- 8R-AWN's Boregun Improved Light Cannon > --- INVENTORY (20) --- Makeshift Leg Flying Fortress v7 Huge Storage Unit Improved Light Cannon Improved Light Cannon Improved Light Cannon Mini Grenade Launcher Peak State ------------ > --- POWER ------------ Makeshift Power Source > --- PROPULSION ------- Light Treads Light Treads > --- UTILITY ---------- High-capacity Storage Unit > --- WEAPON ----------- 8R-AWN's Boregun Improved Light Cannon > --- INVENTORY -------- Makeshift Leg Flying Fortress v7 Huge Storage Unit Improved Light Cannon Improved Light Cannon Improved Light Cannon Mini Grenade Launcher [Rating: 23] Favorites ----------- Power Light Nuclear Core Engine Ion Engine Power Core Light Nuclear Core Propulsion Light Treads Treads Light Treads Leg Aluminum Leg Utility Medium Armor Plating Device Improved Heat Sink Storage Huge Storage Unit Protection Medium Armor Plating Weapon Improved Light Cannon Energy Gun Medium Laser Ballistic Gun Light Assault Rifle Ballistic Cannon Improved Light Cannon Launcher Mini Grenade Launcher Build | -11 -10 -10 -10 ------- Run | Scr Mat Min Exi Slots Evolved . | . . . . Power . | . . . . Propulsion . | . . . . Utility . | . . . . Weapon . | . . . . Parts Attached 49 | . 23 1 25 Power 2 | . 1 . 1 Engine 1 | . . . 1 Core 1 | . 1 . . Reactor . | . . . . Propulsion 7 | . 4 . 3 Treads 7 | . 4 . 3 Leg . | . . . . Wheel . | . . . . Hover . | . . . . Flight . | . . . . Utility 22 | . 8 1 13 Device 2 | . 1 . 1 Storage 13 | . 4 1 8 Processor . | . . . . Hackware . | . . . . Protection 7 | . 3 . 4 Artifact . | . . . . Weapon 18 | . 10 . 8 Energy Gun 5 | . 5 . . Energy Cannon . | . . . . Ballistic Gun 3 | . 2 . 1 Ballistic Cannon 5 | . 2 . 3 Launcher 5 | . 1 . 4 Special Weapon . | . . . . Impact Weapon . | . . . . Slashing Weapon . | . . . . Piercing Weapon . | . . . . Special Melee Weapon . | . . . . Unidentified Prototypes 1 | . . . 1 Parts Lost 15 | . 5 . 10 Power 2 | . 1 . 1 Propulsion 4 | . 2 . 2 Utility 5 | . . . 5 Weapon 4 | . 2 . 2 Highest Loss Streak 7 | . 5 . 7 To Critical Strikes 3 | . . . 3 Average Slot Usage (%) 85 | . 99 93 71 Engine 1 | . 3 . . Core 12 | . 10 14 12 Treads 27 | . 27 28 27 Device 1 | . 3 . . Storage 15 | . 16 14 14 Protection 11 | . 7 14 13 Energy Gun 5 | . 14 . . Ballistic Gun 2 | . 5 . . Ballistic Cannon 7 | . 7 21 1 Naked Turns . | . . . . Heaviest Build 105 | 13 40 100 105 Greatest Support 40 | 20 40 40 40 Greatest Overweight (x) 16 | . . 2 16 Average Overweight (x) . | . . . 1 Largest Inventory Capacity 35 | . 25 25 35 Average Capacity 18 | . 9 21 23 Most Carried 22 | . 15 22 22 Average Carried 13 | . 6 17 17 Final Capacity 25 | 8 15 25 20 Final Carried 21 | 6 15 21 10 Class Distribution -------------------- 100% | Mutant Dominant Class ---------------- Mutant | -10/Materials Mutant | -10/Mines Mutant | -10/Exiles Resources | -11 -10 -10 -10 ----------- Run | Scr Mat Min Exi Matter Collected 932 | 200 428 28 276 Remotely . | . . . . Salvage Created 831 | . 555 1 275 Parts 60 | . 39 . 21 Haulers Intercepted 2 | . 2 . . Recyclers Shooed 1 | . 1 . . Parts Field Recycled . | . . . . Retrieved Matter . | . . . . Parts Self-Destructed . | . . . . Prevented . | . . . . Kills | -11 -10 -10 -10 ------- Run | Scr Mat Min Exi Combat Hostiles Destroyed 20 | . 9 . 11 Guns 9 | . 7 . 2 AOE 11 | . 2 . 9 Classes Destroyed 13 | . 8 1 4 Worker 3 | . 3 . . Builder 2 | . 2 . . Tunneler 1 | . . 1 . Hauler 2 | . 2 . . Recycler 1 | . 1 . . Operator 1 | . 1 . . Watcher 2 | . 2 . . Swarmer 3 | . 3 . . Grunt 11 | . 6 . 5 Brawler 1 | . . . 1 Duelist 1 | . . . 1 Hunter 3 | . . . 3 Programmer 1 | . . . 1 Best Kill Streak 10 | . 4 1 10 Combat Bots Only 10 | . 3 . 10 Max Kills in Single Turn 7 | . 3 1 7 Gunslinging . | . . . . Exploded 7 | . 2 . 7 Melee . | . . . . Uniques/NPCs Destroyed . | . . . . Combat | -11 -10 -10 -10 -------- Run | Scr Mat Min Exi Damage Taken 2184 | . 600 . 1584 Core 262 | . 77 . 185 Absorbed by Shields 13 | . . . 13 Core Remaining (%) 100 | 100 . . . Volleys Fired 92 | . 68 3 21 Largest 2 | . 2 2 2 Hottest 115 | . 115 78 96 Shots Fired 180 | . 135 8 37 Gun 129 | . 120 . 9 Cannon 45 | . 14 8 23 Launcher 6 | . 1 . 5 Special . | . . . . Kinetic 83 | . 43 8 32 Thermal 68 | . 68 . . Explosive 6 | . 1 . 5 Electromagnetic 23 | . 23 . . Robot Hit Streak 10 | . 9 3 10 Robot Miss Streak 5 | . 5 2 2 Penetration Max . | . . . . Secondary Targets . | . . . . Shots Hit Robots 105 | . 74 4 27 Core Hits 56 | . 32 1 23 Critical Kills 2 | . . . 2 Critical Parts Destroyed . | . . . . Critical Strikes 10 | . 4 . 6 Burn 4 | . 4 . . Destroy 4 | . . . 4 Blast 2 | . . . 2 Melee Attacks . | . . . . Impact . | . . . . Slashing . | . . . . Piercing . | . . . . Sneak Attacks . | . . . . Combat Hostiles . | . . . . Follow-up Attacks . | . . . . Damage Inflicted 2718 | . 1180 101 1437 Guns 959 | . 862 . 97 Cannons 688 | . 165 101 422 Explosions 1071 | . 153 . 918 Melee . | . . . . Ramming . | . . . . Kinetic 917 | . 297 101 519 Thermal 497 | . 497 . . Explosive 1071 | . 153 . 918 Electromagnetic 233 | . 233 . . Impact . | . . . . Slashing . | . . . . Piercing . | . . . . Highest Corruption 12 | . 6 6 12 Average Corruption 6 | . 5 6 6 Corruption Purged . | . . . . Corruption Blocked . | . . . . Effects 115 | . 23 23 69 Message Errors 29 | . 5 5 19 Matter Fused 25 | . 5 4 16 Heat Flow Errors 15 | . 2 4 9 Energy Discharges 15 | . 1 6 8 Data Loss (minor) 18 | . 6 2 10 Data Loss (major) 6 | . 2 . 4 Misfires 4 | . 1 2 1 Alerts 2 | . . . 2 Weapon Failures 1 | . 1 . . Overload Shots . | . . . . Overflow Damage 1 | . . . 1 Projectiles . | . . . . Explosions 1 | . . . 1 Melee . | . . . . Knockbacks 11 | . 2 2 7 Impact . | . . . . Kinetic 11 | . 2 2 7 Secondary . | . . . . Self-Inflicted Damage 130 | . 21 . 109 Shots 6 | . 1 . 5 Rammed 1 | . . 1 . Targets Rammed 1 | . . 1 . Kicked . | . . . . Crushed . | . . . . Highest Temperature 324 | . 324 212 284 Average Temperature 87 | . 77 71 107 Received Heat Transfer 321 | . 231 . 90 Effects 1 | . 1 . . Damage (minor) 1 | . 1 . . Siege Activations . | . . . . Robots Corrupted . | . . . . Combat Hostiles . | . . . . Parts Fried . | . . . . Impact Corruptions . | . . . . Robots Melted . | . . . . Combat Hostiles . | . . . . Parts Melted 2 | . 1 . 1 Heat Transferred 1665 | . 1665 . . Parts Sabotaged . | . . . . Parts Stolen . | . . . . Parts Stripped . | . . . . Power Chain Reactions . | . . . . Missiles Intercepted . | . . . . Alert | -11 -10 -10 -10 ------- Run | Scr Mat Min Exi Peak Influence 187 | . 187 5 . Initial . | . . . . Average 33 | . 50 . . Maximum Alert Level . | . . . . Low Security (%) 100 | . 100 100 . Level 1 . | . . . . Level 2 . | . . . . Level 3 . | . . . . Level 4 . | . . . . Level 5 . | . . . . High Security . | . . . . Max Security . | . . . . Squads Dispatched 2 | . 2 . . Investigation . | . . . . Extermination . | . . . . Reinforcement 2 | . 2 . . Assault . | . . . . Garrison . | . . . . Intercept . | . . . . Searches Triggered . | . . . . Construction Impeded . | . . . . Haulers Reinforced . | . . . . Active Scanning Responses . | . . . . Cargo Convoy Interrupts . | . . . . Stealth | -11 -10 -10 -10 --------- Run | Scr Mat Min Exi Distress Signals . | . . . . Communications Jammed . | . . . . Distress Signals . | . . . . Times Spotted 40 | . 27 . 13 Peak Tracking Total 12 | . 3 . 12 Tactical Retreats . | . . . . Traps | -11 -10 -10 -10 ------- Run | Scr Mat Min Exi Traps Triggered 5 | . 5 . . Indirectly . | . . . . Trap Hack Attempts . | . . . . Triggered . | . . . . Disarmed . | . . . . Reprogrammed . | . . . . Reused 3 | . . . 3 Traps Extracted . | . . . . Installed 3 | . . . 3 Triggered 1 | . . . 1 Most Traps Carried 3 | . . 3 3 Exploded 1 | . . . 1 Machines | -11 -10 -10 -10 ---------- Run | Scr Mat Min Exi Machines Disabled 5 | . . . 5 Max in Single Turn 1 | . . . 1 Machines Sabotaged . | . . . . Garrisons Compromised . | . . . . Overloaded Fab Kills . | . . . . Hacking | -11 -10 -10 -10 --------- Run | Scr Mat Min Exi Machines Accessed 8 | . 7 . 1 Terminals 5 | . 5 . . Fabricators . | . . . . Repair Stations . | . . . . Recycling Units 2 | . 2 . . Scanalyzers . | . . . . Garrison Access . | . . . . Total Hacks 22 | . 21 . 1 Successful 13 | . 12 . 1 Failed 9 | . 9 . . Catastrophic . | . . . . Database Lockouts . | . . . . Manual 22 | . 21 . 1 Terminals 16 | . 16 . . Fabricators . | . . . . Repair Stations . | . . . . Recycling Units 5 | . 5 . . Scanalyzers . | . . . . Garrison Access . | . . . . Terminal Hacks 6 | . 5 . 1 Terminal Index 1 | . 1 . . Unreport Threat 4 | . 4 . . EX-Prototype ID Bank 1 | . . . 1 Fabricator Hacks . | . . . . Repair Station Hacks . | . . . . Recycling Unit Hacks . | . . . . Scanalyzer . | . . . . Garrison Access Hacks . | . . . . Unauthorized Hacks 7 | . 7 . . Terminals 4 | . 4 . . Botnet 3 | . 3 . . Operators 1 | . 1 . . Fabricators . | . . . . Repair Stations . | . . . . Recycling Units 3 | . 3 . . Reject 1 | . 1 . . Recyclers 1 | . 1 . . Mask 1 | . 1 . . Scanalyzers . | . . . . Garrison Access . | . . . . Data Cores Recovered . | . . . . Used . | . . . . Hacking Detections 5 | . 5 . . Full Trace Events . | . . . . Feedback Events . | . . . . Feedback Blocked . | . . . . Robot Schematics Acquired . | . . . . Robots Built . | . . . . Authchips . | . . . . Time . | . . . . Total Robot Build Rating . | . . . . Part Schematics Acquired . | . . . . Parts Built . | . . . . Authchips . | . . . . Time . | . . . . Total Part Build Rating . | . . . . Parts Repaired . | . . . . Time . | . . . . Parts Recycled . | . . . . Recycled Matter . | . . . . Retrieved Matter . | . . . . Retrieved Components . | . . . . Parts Scanalyzed . | . . . . Part Schematics Acquired . | . . . . Parts Damaged . | . . . . Bothacking | -11 -10 -10 -10 ------------ Run | Scr Mat Min Exi Used RIF Installer . | . . . . Robots Hacked . | . . . . Non-combat . | . . . . Combat . | . . . . Robot Hacks Applied . | . . . . Relay Couplers Released . | . . . . Fabnet Peak Effective % . | . . . . Robots Rewired . | . . . . Allies Hacked . | . . . . Hacks Repelled . | . . . . Allies | -11 -10 -10 -10 -------- Run | Scr Mat Min Exi Total Allies 5 | . . 5 . Largest Group 5 | . . 5 5 Highest-Rated Group 78 | . . 78 78 Highest-Rated Ally 31 | . . 31 31 Total Orders . | . . . . Ally Attacks 5 | . . . 5 Total Damage 4 | . . . 4 Kills . | . . . . Allies Corrupted . | . . . . Allies Melted . | . . . . Intel | -11 -10 -10 -10 ------- Run | Scr Mat Min Exi Robot Analysis Total . | . . . . Derelict Logs Recovered 1 | . . 1 . Drone Launches . | . . . . Drone Recoveries . | . . . . Exploration | -11 -10 -10 -10 ------------- Run | Scr Mat Min Exi Turns Passed 5796 | . 2019 1024 2753 Spaces Moved 2342 | 1 1036 429 876 Core 2 | . . . 2 Treads 2334 | . 1031 429 874 Legs 6 | 1 5 . . Wheels . | . . . . Hover . | . . . . Flight . | . . . . Fastest Speed 120 | 120 120 160 160 Average Speed 224 | 120 159 229 298 Slowest Speed 850 | 120 160 320 850 Overloaded Moves . | . . . . Propulsion Burnouts . | . . . . Robots Hopped . | . . . . Cave-ins Triggered . | . . . . Exploration Rate (%) 67 | 1 96 83 89 Regions Visited 3 Branch Regions 2 Pre-discovered Areas 2 | . . 2 . Known Exits Taken . | . . . . Unknown Exits Taken 3 | 1 1 1 . Scrap Searched 1 | . . 1 . Spaces Dug . | . . . . Terrain Destroyed 45 | . 2 . 43 Melee . | . . . . Projectile 14 | . 1 . 13 AOE 31 | . 1 . 30 Terrain Rammed . | . . . . Walls Destroyed . | . . . . Machines Disabled . | . . . . Actions | -11 -10 -10 -10 --------- Run | Scr Mat Min Exi Total 2723 | . 1277 463 983 Wait 111 | . 78 18 15 Move 2339 | . 1035 428 876 Hop . | . . . . Pick Up 72 | . 41 7 24 Fast Attach 11 | . 4 . 7 Attach 13 | . 3 . 10 Detach 3 | . . 2 1 Swap 25 | . 16 1 8 Drop 53 | . 32 3 18 Fire 92 | . 68 3 21 Melee . | . . . . Ram . | . . . . Kick . | . . . . Crush 1 | . . 1 . Escape Stasis . | . . . . Rewire . | . . . . Trap 3 | . . . 3 Miscellaneous . | . . . . Route ------- -11/Scrapyard -10/Materials (discovered 5 exits: [*Mat x3] / [*Min x2]) -10/Mines (discovered 2 exits: [*Mat] / *Exi) -10/Exiles (discovered 1 exit: [*Min]) History --------- Turn | Location | Event 1 | -11/Scrapyard | Discovered new exit (range 0) 1 | -11/Scrapyard | Entered Materials 313 | -10/Materials | Build established: Mutant 547 | -10/Materials | Lost 5 parts (1p2n2w) 631 | -10/Materials | Discovered new exit (range 14) 1022 | -10/Materials | Discovered new exit (range 3) 1201 | -10/Materials | Discovered new exit (range 13) 1307 | -10/Materials | Discovered new exit (range 15) 1596 | -10/Materials | Discovered new exit (range 11) 2020 | -10/Materials | Entered Mines 2145 | -10/Mines | A weapon hastily lodged in a ceiling crevice suddenly fell to the ground 2362 | -10/Mines | Discovered new exit (range 13) 2376 | -10/Mines | Assisted by bots powering up and referring to "LRC-V3" 2414 | -10/Mines | Found a hidden stash of uninstalled traps 2873 | -10/Mines | Learned location of Storage (-8) 3019 | -10/Mines | Deemed a non-threat by the Exiles lab entrance 3022 | -10/Mines | Discovered new exit (range 5) 3044 | -10/Mines | Entered Exiles 3044 | -10/Exiles | Accompanied by 5 allies 3074 | -10/Exiles | Led the pair of lost Derelicts to a safe place 3092 | -10/Exiles | Discovered new exit (range 15) 3184 | -10/Exiles | Met 8R-AWN 3232 | -10/Exiles | Met EX-HEX 3805 | -10/Exiles | Met EX-DEC 3994 | -10/Exiles | Visited The Gauntlet 5229 | -10/Exiles | Met EX-BIN 5257 | -10/Exiles | Aligned with FarCom system 5260 | -10/Exiles | Given EX-Vault access code 5317 | -10/Exiles | Opened EX-Vault 5376 | -10/Exiles | Found Flying Fortress v7 5432 | -10/Exiles | Exiles lab attacked by MAIN.C 5545 | -10/Exiles | Attacked by the Exiles 5604 | -10/Exiles | Core integrity fell below 50% 5622 | -10/Exiles | Found Prototype Ballistic Gun 5645 | -10/Exiles | Lost 3 parts (1p1n1u) 5679 | -10/Exiles | Core integrity fell below 20% 5694 | -10/Exiles | Identified 8R-AWN's Boregun 5718 | -10/Exiles | Destroyed 10 combat bots 5719 | -10/Exiles | System corruption reached 10% 5751 | -10/Exiles | Lost 7 parts (1n4u2w) 5797 | -10/Exiles | Destroyed by H-55 Commando with Gauss Rifle Last Messages --------------- 05729_ HV Slug penetrates B-36 Bruiser. 05729_ B-36 Bruiser suffers critical hit (Destroy). 05729_ HV Slug penetrates Earth. 05732_ B-36 Bruiser Lgt. Armor Plating blasted off. 05734_ System corrupted: Matter fused (-9). 05735_ HV Slug penetrates B-36 Bruiser. 05735_ HV Slug penetrates Earth. 05744_ Acquired Mak. Leg. 05752_ Acquired 38 matter. 05755_ HV Slug penetrates B-36 Bruiser. 05755_ B-36 Bruiser suffers critical hit (Destroy). 05755_ B-36 Bruiser destroyed. 05755_ HV Slug penetrates Wall. 05758_ Acquired 60 matter. 05761_ 0HPY LSY/1EVA0P0=POAFTEI:WS 05764_ Acquired Lgt. Treads. 05778_ Acquired Mak. Power Source. 05789_ Acquired 9 matter. 05793_ The unstable cave ceiling collapses. 05797_ System corrupted: Substantial component data lost. Map ----- +----------------------------------------------------+ | ?????????????????????????????????????????????????? | | ?????????????????????????????????????????????????? | | ?????????????????????????????????????????????????? | | ?????????????????????????????????????????????????? | | ?????????????????????????????????????????????????? | | ?????????????????????????????????????????????????? | | ?????????????????????????????????????????????????? | | ???????????????????????????? ????????????????????? | | ???????????????????????????? ????????????????????? | | ???????????????????????????? ????????????????????? | | ???????????????????????????# #???????????????????? | | ???????????????????????????# #???????????????????? | | ???????????????????????????# #???????????????????? | | ?????????????????????????### #????????##?????????? | | ?????????????????????????# # #???????# #?????????? | | ?????????????????????????# # #??????# #??????????? | | ?????????????????????????# # #?????# #???????????? | | ?????????? ??????????????#;#;###??# #????????????? | | ?????????? ########?????# ! ### #?????????????? | | ????????? #""#;#????# # #??????????????? | | ????????? # #??## ##??????????????? | | ?????????" ## ### #???????######## | | ?????????" ##;# ! [! ###??????# """# | | ??????????# #[*[ =%= #??????#"" """# | | ???????????# = # ##??????#"" # | | ?????????????## @!= # #???????#"" # | | ??????????????#### [ = ## ##???????#"" "# | | ?????????????????### =* ###????????# ""# | | ???????????######## = ##?????????#"" ""# | | ???????????# """" % ##?#####??### ### | | ???????????#! ### ### ###### ### | | ???????????#! ! "#?#; ##X# #"# | | ???????????#! ### # "" | | ???????????# !""""" ###?###"; * "" | | ???????????##########?????#### [h= " | | ?????????????????????????????### %=[ | | ???????????????????????????????### ! % | | ?????????????????????????????????## ! | | ??????????????????????????????????## | | ???????????????????????????????????##" %= | | ????????????????????????????????????#"" | | ???????????????????????????????????##" | | ???????????????????????????????????#"" | | ???????????????????????????????????#""" | | ???????????????????????????????????""" " | | ??????????????????????????????????#""" | | ??????????????????????????????????#"" | | ??????????????????????????????????#""" | | ??????????????????????????????????#"" | | ??????????????????????????????????##"" | +----------------------------------------------------+ Best States ------------- Heat Dissipation 39 Energy Generation 15 Energy Capacity 250 Matter Stores 346 Matter Capacity 450 Sight Range 16 Terrain Scan Density 10 Armor Coverage 225 Utility Shielding 33 Evasion (%) 45 Recoil Reduction 2 Item Schematics ----------------- None Robot Schematics ------------------ None Fabricated ------------ Nothing Alien Tech Used ----------------- None Achievements -------------- None Challenges ------------ None Game ------ Seed MobileBeamLoader Manual? 0 Play Time 00:53:42 Cumulative 106.2 hours Start 2022.06.05 @ 02:52:02 End 2022.06.06 @ 00:10:49 Sessions 1 Manual Loads 0 Difficulty Rogue Special Mode None Game No. 71 Rogue 69 Adventurer 0 Explorer 2 Win Type - Total 0 Types 0/0/0/0/0/0/0/0/0 Lore% 26 Gallery% 37 Achievement% 30 Wizard Run 0 Options --------- ASCII 0 Keyboard 0 Movement Numpad Keybinds 0 Fullscreen 1 Font 18/SmallcapsGlow Map View 76x50 Tactical HUD 1 Map Filters NONE Filters NONE Steam 1 RUN: 0c8cb041-e353-4a75-a56c-e4833f2509c5